Cogmind - Beta 13 @@@ ROGUE MODE // 2024.04.09 @ 15:52:44 Player: youngster Result: Destroyed by as-70415 with Assembled Shotgun Performance ------------- Evolutions (4) 2000 Regions Visited (15) 3000 Robots Destroyed (199) 995 Value Destroyed (6031) 6031 Prototype IDs (29) 580 Alien Tech Used (1) 200 Bonus (223) 223 TOTAL SCORE: 13029 Bonus ------- High Alert Combat Kills 283 Follower Combat Kills 298 Met Data Miner 300 Met Imprinter 300 Destroyed Z-Imprinter 1000 Triggered Deep Caves Wall 500 Exposed GOLEM Chamber 500 Friendly Fire -2958 Cogmind --------- Core Integrity 0/850 Matter 205/300 Energy 80/100 System Corruption 0% Temperature Cool (76) Movement Core (200) Ox3 Location -6/Deep Caves Parts ------- > --- POWER (3) -------- (None) > --- PROPULSION (4) --- (None) > --- UTILITY (6) ------ Machine Analyzer Enhanced Optical Array > --- WEAPON (3) ------- Heavy Plasma Cannon > --- INVENTORY (5) ---- Hardened Medium Armor Plating Advanced Shield Generator Tearclaws Peak State ------------ > --- POWER ------------ Micro Nuclear Core Fission Core Hybrid Fission Core > --- PROPULSION ------- Medium Treads Medium Treads Improved Medium Treads Armored Wheel > --- UTILITY ---------- Huge Storage Unit Machine Analyzer Enhanced Optical Array Heart of Steel > --- WEAPON ----------- Heavy Plasma Cannon Heavy Plasma Cannon Long-range Missile Launcher > --- INVENTORY -------- Antimatter Reactor Improved Cooling System Advanced Energy Well Large Matter Pod Advanced Sensor Array Seismic Detector Advanced Particle Charger Transmission Jammer Hardened Medium Armor Plating Layered Heavy Armor Plating Experimental Thermal Shield EM Disruption Field Advanced Shield Generator Advanced Shield Generator Long-range Tractor Beam EM Pulse Cannon Heavy Plasma Cannon Neutron Cannon Proton Missile Launcher Rocket Array Rocket Array Powered Hammer Tearclaws [Rating: 89] Favorites ----------- Power Micro Nuclear Core Engine Ion Engine Power Core Micro Nuclear Core Reactor Antimatter Reactor Propulsion Medium Treads Treads Medium Treads Leg Aluminum Leg Wheel Armored Wheel Hover Unit Zionite Glidesys I Utility Machine Analyzer Device Seismic Detector Storage Huge Storage Unit Processor Machine Analyzer Protection Improved Light Armor Plating Weapon Heavy Plasma Cannon Energy Gun Medium Laser Energy Cannon Heavy Plasma Cannon Ballistic Gun Assault Rifle Ballistic Cannon Advanced Assault Cannon Launcher Long-range Missile Launcher Special Weapon Mining Laser Impact Weapon Powered Hammer Special Melee Weapon Datajack Build | -11 -10 -10 -9 -9 -8 -7 -7 -7 -7 -6 -6 -6 -6 -6 -6 ------- Run | Yrd Mat Min Mat Min Mat Fac Low Low Dat Pro Fac Low Low Zio Dee Slots Evolved 8 | . . . 2 . 2 2 . . . . 2 . . . . Power 1 | . . . . . . 1 . . . . . . . . . Propulsion 2 | . . . 1 . . . . . . . 1 . . . . Utility 4 | . . . 1 . 2 1 . . . . . . . . . Weapon 1 | . . . . . . . . . . . 1 . . . . Parts Attached 279 | 7 10 17 36 5 13 66 12 8 2 15 35 16 13 4 20 Power 15 | 1 . . 2 . 1 4 2 . . 1 3 . . . 1 Engine 7 | 1 . . 2 . 1 2 1 . . . . . . . . Core 6 | . . . . . . 2 1 . . . 3 . . . . Reactor 2 | . . . . . . . . . . 1 . . . . 1 Propulsion 44 | 2 2 6 14 1 3 8 1 . . . 6 . . . 1 Treads 24 | 2 2 4 3 1 2 4 1 . . . 5 . . . . Leg 2 | . . . 2 . . . . . . . . . . . . Wheel 17 | . . 2 9 . 1 4 . . . . 1 . . . . Hover 1 | . . . . . . . . . . . . . . . 1 Flight . | . . . . . . . . . . . . . . . . Utility 119 | 2 8 3 11 . 6 20 2 2 . 6 21 12 11 3 12 Device 72 | 1 3 1 6 . 2 9 1 1 . 3 18 10 10 2 5 Storage 5 | 1 2 . . . . 1 . . . . . . . . 1 Processor 3 | . . . . . 1 . . . . 1 1 . . . . Hackware . | . . . . . . . . . . . . . . . . Protection 39 | . 3 2 5 . 3 10 1 1 . 2 2 2 1 1 6 Artifact . | . . . . . . . . . . . . . . . . Weapon 101 | 2 . 8 9 4 3 34 7 6 2 8 5 4 2 1 6 Energy Gun 14 | 1 . . 3 . . 8 1 1 . . . . . . . Energy Cannon 16 | . . . 3 3 1 2 . . . . 3 1 . 1 2 Ballistic Gun 20 | 1 . 5 1 . 1 6 2 1 . 3 . . . . . Ballistic Cannon 7 | . . . . . . 6 1 . . . . . . . . Launcher 24 | . . 2 1 1 . 6 2 1 1 2 1 2 2 . 3 Special Weapon 2 | . . 1 1 . . . . . . . . . . . . Impact Weapon 14 | . . . . . . 6 1 3 . 1 1 1 . . 1 Slashing Weapon . | . . . . . . . . . . . . . . . . Piercing Weapon . | . . . . . . . . . . . . . . . . Special Melee Weapon 4 | . . . . . 1 . . . 1 2 . . . . . Unidentified Prototypes 13 | . . . 1 . 1 3 1 . . . . . 1 . 6 Parts Lost 53 | . . 5 5 1 . 15 2 1 . 3 5 . . . 16 Power 11 | . . . 1 . . 2 1 1 . 1 1 . . . 4 Propulsion 15 | . . 3 1 1 . 2 . . . . 3 . . . 5 Utility 15 | . . 1 2 . . 6 . . . 2 1 . . . 3 Weapon 12 | . . 1 1 . . 5 1 . . . . . . . 4 Highest Loss Streak 11 | . . 3 2 1 . 5 2 1 . 2 5 . . . 11 To Critical Strikes . | . . . . . . . . . . . . . . . . Average Slot Usage (%) 93 | . 99 99 93 99 99 96 92 92 91 84 95 100 92 87 87 Engine 5 | . 14 14 11 11 9 8 7 7 7 . . . . . . Core 8 | . . . . . . 4 2 7 7 7 12 18 18 18 10 Treads 17 | . 27 26 11 16 18 10 12 14 14 14 17 18 18 18 14 Wheel 6 | . . 1 14 15 9 10 7 7 7 7 4 6 6 6 5 Device 10 | . 13 10 8 11 17 15 22 20 21 14 11 10 8 4 2 Storage 8 | . 14 14 11 11 9 7 7 7 7 7 6 6 6 6 5 Processor 8 | . . . . . 8 7 7 7 7 7 16 18 12 12 12 Protection 5 | . . 3 13 11 9 14 7 7 7 11 1 1 2 1 8 Energy Gun 2 | . 14 8 7 . . 4 1 . . . . . . . . Energy Cannon 7 | . . . 7 22 17 1 . . . . 10 12 12 12 14 Ballistic Gun 4 | . 14 17 4 . . 2 7 8 . 8 1 . . . . Launcher 2 | . . . 1 . . . . . . . . 1 6 6 2 Impact Weapon 1 | . . . . . . 1 2 5 7 . 5 4 . . . Naked Turns . | . . . . . . . . . . . . . . . . Heaviest Build 154 | 15 52 53 57 57 64 119 132 121 122 121 141 141 143 154 154 Greatest Support 86 | 40 40 40 43 24 50 24 12 12 12 12 84 86 86 12 12 Greatest Overweight (x) 12 | . 1 3 4 4 5 9 10 10 10 10 11 11 11 12 12 Average Overweight (x) 6 | . . 1 2 3 4 8 8 9 9 8 8 8 5 11 11 Largest Inventory Capacity 25 | 8 20 20 20 20 20 25 25 25 25 25 25 25 25 25 25 Average Capacity 23 | 7 18 20 20 20 20 24 25 25 25 25 25 25 25 25 24 Most Carried 25 | 6 20 20 20 20 20 25 25 25 25 25 25 25 25 25 25 Average Carried 22 | 3 14 19 18 19 19 21 23 24 24 24 24 24 24 24 24 Final Capacity 25 | 8 20 20 20 20 20 25 25 25 25 25 25 25 25 25 5 Final Carried 25 | 6 20 15 20 19 20 25 22 25 24 25 25 25 25 25 4 Class Distribution -------------------- 57% | Mutant 20% | Skirmisher 17% | Tank 4% | Scavenger-Mutant Dominant Class ---------------- Mutant | -10/Materials Mutant | -10/Mines Mutant | -9/Materials Mutant | -9/Mines Mutant | -8/Materials Mutant | -7/Factory Mutant | -7/Lower Caves Mutant | -7/Lower Caves Mutant | -7/Data Miner Mutant | -6/Proximity Caves Mutant | -6/Factory Mutant | -6/Lower Caves Skirmisher | -6/Lower Caves Skirmisher | -6/Zion Tank | -6/Deep Caves Resources | -11 -10 -10 -9 -9 -8 -7 -7 -7 -7 -6 -6 -6 -6 -6 -6 ----------- Run | Yrd Mat Min Mat Min Mat Fac Low Low Dat Pro Fac Low Low Zio Dee Matter Collected 5794 | 288 533 309 492 78 116 1050 183 158 . 311 466 270 1011 245 284 Remotely 75 | . . . . . . . . . . . 75 . . . . Salvage Created 7922 | 135 819 289 1318 204 540 1810 182 104 . 384 315 245 816 . 761 Parts 368 | 11 42 9 73 25 30 81 7 8 . 15 14 11 24 . 18 Haulers Intercepted 9 | . 2 . 3 . 2 2 . . . . . . . . . Recyclers Shooed 6 | 1 3 . 1 1 . . . . . . . . . . . Parts Field Recycled . | . . . . . . . . . . . . . . . . Retrieved Matter . | . . . . . . . . . . . . . . . . Parts Self-Destructed 25 | . . . . . . . 1 4 . 4 . 3 13 . . Prevented 4 | . . . . . . . 1 3 . . . . . . . Kills | -11 -10 -10 -9 -9 -8 -7 -7 -7 -7 -6 -6 -6 -6 -6 -6 ------- Run | Yrd Mat Min Mat Min Mat Fac Low Low Dat Pro Fac Low Low Zio Dee Combat Hostiles Destroyed 192 | . 15 13 29 14 7 32 3 4 . 7 3 9 13 . 43 Melee 1 | . . . . . . 1 . . . . . . . . . Guns 58 | . 15 13 17 . . 10 1 . . 2 . . . . . Cannons 48 | . . . 9 8 7 11 . . . . 3 3 4 . 3 AOE 76 | . . . 3 6 . 6 2 3 . 4 . 6 9 . 37 Classes Destroyed 23 | 2 6 1 3 . 1 2 2 . . . 1 1 2 . 2 Worker 6 | . . . 1 1 . 4 . . . . . . . . . Builder 9 | . 2 . . . 1 3 . . . . 3 . . . . Tunneler 4 | 3 . . . 1 . . . . . . . . . . . Hauler 9 | . 2 . 3 . 2 2 . . . . . . . . . Recycler 8 | 1 3 . 1 . . 2 . . . . 1 . . . . Mechanic 2 | . 1 . . . . 1 . . . . . . . . . Operator 1 | . . . 1 . . . . . . . . . . . . Watcher 9 | . 2 . 4 . 2 . . . . . 1 . . . . Swarmer 44 | . 6 . 7 14 . . 3 3 . . . 4 7 . . Grunt 67 | . 9 5 17 . 4 20 . . . 5 . 3 4 . . Brawler 6 | . . . . . 1 2 . . . 1 . . 2 . . Researcher 1 | . . . . . . . 1 . . . . . . . . Sentry 14 | . . . 5 . 2 6 . . . 1 . . . . . Hunter 2 | . . . . . . 1 . 1 . . . . . . . Programmer 5 | . . . . . . 3 . . . . 2 . . . . Behemoth 1 | . . . . . . . . . . . 1 . . . . Enhanced Grunt 2 | . . . . . . . . . . 1 . . . . 1 Z-Technician 5 | . . . . . . . . . . . . . . . 5 Z-Light 2 | . . . . . . . . . . . . . . . 2 Decomposer 4 | . . . . . . . . . . 2 . 2 . . . Packrat 1 | . . . . . . . 1 . . . . . . . . Samaritan 7 | . . . . . . . 1 . . . . . 6 . . Tinkerer 1 | . . . . . . . . . . . . . 1 . . Thief 2 | . . . . . . . . . . . . 2 . . . Assembled 46 | . . 8 . . . . . . . . . . . . 38 Golem 2 | . . . . . . . . . . . . . . . 2 Thug 1 | . . . . . . . . . . . . . 1 . . Savage 1 | . . . . . . . . . . . . . 1 . . Mutant 1 | . . . . . . . . . . . . . 1 . . Best Kill Streak 36 | 2 5 3 5 4 4 8 3 3 . 4 2 4 4 . 36 Combat Bots Only 36 | . 5 3 5 4 3 5 3 3 . 4 1 4 4 . 36 Max Kills in Single Turn 32 | 1 2 1 3 3 1 2 2 3 . 2 1 2 3 . 32 Gunslinging 1 | . 1 . . . . . . . . . . . . . . Exploded 32 | . . . 3 3 . 2 2 3 . 2 . 2 3 . 32 Melee 1 | . . . . . . 1 . . . . . . . . . Uniques/NPCs Destroyed 1 | . . . . . . . . . . . . . . . 1 Z-Imprinter (-6/Deep Caves) Combat | -11 -10 -10 -9 -9 -8 -7 -7 -7 -7 -6 -6 -6 -6 -6 -6 -------- Run | Yrd Mat Min Mat Min Mat Fac Low Low Dat Pro Fac Low Low Zio Dee Hostile Shots Fired 1196 | . 63 55 108 27 13 558 7 15 . 94 71 23 16 . 146 Missed 401 | . 25 10 26 6 3 200 1 4 . 37 24 8 6 . 51 Damage Taken 10794 | . 384 772 1004 235 173 3302 86 129 . 666 892 295 152 . 2704 Core 1733 | . 46 173 207 33 . 257 31 24 . 111 82 62 35 . 672 Absorbed by Shields 577 | . . . . . . 303 35 50 . 189 . . . . . Redirected to Shielding 182 | . . . 7 11 4 . . . . . . . . . 160 Ignored by Resistances 265 | . . . . . . 127 . . . . 108 12 18 . . Regen/Repaired (Parts) 592 | . 140 . 203 . . 249 . . . . . . . . . Core Remaining (%) 58 | 100 . 12 . 40 100 . . . . 39 . . . . . Volleys Fired 569 | 6 61 50 111 24 24 104 10 8 . 26 37 14 49 6 39 Largest 3 | 2 2 2 2 2 2 2 2 2 . 2 2 3 2 1 2 Hottest 270 | 70 70 100 136 136 136 136 73 80 . 46 180 270 180 90 180 Shots Fired 1060 | 12 122 95 212 46 48 198 18 18 . 36 68 27 88 6 66 Gun 581 | 12 122 90 168 . . 107 14 17 . 33 18 . . . . Cannon 432 | . . . 38 44 48 83 3 . . . 50 24 79 6 57 Launcher 40 | . . 2 2 2 . 8 1 1 . 3 . 3 9 . 9 Special 7 | . . 3 4 . . . . . . . . . . . . Kinetic 355 | 6 61 84 51 . . 76 16 10 . 33 18 . . . . Thermal 592 | 6 61 9 159 44 48 55 . . . . 50 24 79 6 51 Explosive 40 | . . 2 2 2 . 8 1 1 . 3 . 3 9 . 9 Electromagnetic 73 | . . . . . . 59 1 7 . . . . . . 6 Robot Hit Streak 24 | 4 10 10 21 5 7 24 7 12 . 15 18 4 14 . 15 Robot Miss Streak 10 | 1 10 4 4 3 2 4 1 1 . 3 3 2 4 . 5 Penetration Max . | . . . . . . . . . . . . . . . . Secondary Targets 4 | . 1 1 1 . . 1 . . . . . . . . . Max Gunslinging Chain 1 | . 1 1 1 . . 1 . . . . . . . . . Shots Hit Robots 673 | 7 75 60 131 21 31 148 14 11 1 36 38 16 46 . 38 Core Hits 461 | 5 36 25 54 15 14 86 14 5 . 37 8 11 43 . 108 Critical Kills 2 | . 1 . . . . . 1 . . . . . . . . Critical Parts Destroyed 2 | . . . 1 . . . . . . . . 1 . . . Critical Strikes 21 | 1 8 . 6 . . 3 1 1 . . . 1 . . . Burn 13 | 1 7 . 5 . . . . . . . . . . . . Destroy 3 | . 1 . 1 . . . 1 . . . . . . . . Blast 2 | . . . . . . 2 . . . . . . . . . Corrupt 2 | . . . . . . 1 . 1 . . . . . . . Smash 1 | . . . . . . . . . . . . 1 . . . Melee Attacks 94 | . . . . . . 14 36 3 1 9 27 1 . . 3 Impact 92 | . . . . . . 14 36 3 . 8 27 1 . . 3 Slashing . | . . . . . . . . . . . . . . . . Piercing . | . . . . . . . . . . . . . . . . Sneak Attacks 8 | . . . . . . 1 1 . 1 2 2 1 . . . Combat Hostiles . | . . . . . . . . . . . . . . . . Follow-up Attacks . | . . . . . . . . . . . . . . . . Damage Inflicted 22977 | 88 1387 662 1937 796 645 4710 529 354 . 1519 1196 1073 2665 . 5416 Guns 5656 | 88 934 616 1396 . . 1649 186 178 . 402 207 . . . . Cannons 6653 | . . . 410 434 641 1326 47 . . . 859 447 1411 . 1078 Explosions 9653 | . 442 46 131 362 . 1538 159 166 . 814 . 556 1254 . 4185 Melee 981 | . . . . . . 188 137 . . 303 130 70 . . 153 Ramming 34 | . 11 . . . 4 9 . 10 . . . . . . . Kinetic 3520 | 49 482 579 270 . . 1242 215 74 . 402 207 . . . . Thermal 9584 | 39 452 37 1536 434 641 1075 . . . . 859 447 1411 . 2653 Explosive 7673 | . 442 46 131 362 . 1242 159 166 . 814 . 556 1254 . 2501 Electromagnetic 1185 | . . . . . . 954 18 104 . . . . . . 109 Impact 981 | . . . . . . 188 137 . . 303 130 70 . . 153 Slashing . | . . . . . . . . . . . . . . . . Piercing . | . . . . . . . . . . . . . . . . Highest Corruption 5 | . . . . . . 4 4 5 5 5 . . . . . Average Corruption 3 | . . . . . . 1 4 4 5 5 . . . . . Corruption Purged . | . . . . . . . . . . . . . . . . Corruption Blocked 15 | . . . . . . . 15 . . . . . . . . Effects 79 | . . . . . . 14 19 17 3 26 . . . . . Message Errors 16 | . . . . . . 3 5 4 . 4 . . . . . Matter Fused 25 | . . . . . . 5 4 4 1 11 . . . . . Heat Flow Errors 6 | . . . . . . 1 1 3 1 . . . . . . Energy Discharges 9 | . . . . . . 1 5 1 . 2 . . . . . Parts Fused 2 | . . . . . . . 2 . . . . . . . . Data Loss (minor) 9 | . . . . . . 1 1 2 1 4 . . . . . Data Loss (major) 3 | . . . . . . 2 . . . 1 . . . . . Misfires 6 | . . . . . . 1 . 3 . 2 . . . . . Alerts 2 | . . . . . . . 1 . . 1 . . . . . Weapon Failures 1 | . . . . . . . . . . 1 . . . . . Overload Shots . | . . . . . . . . . . . . . . . . Overflow Damage 1289 | . 127 . . 30 . 115 84 . . 104 92 107 179 . 451 Projectiles 289 | . . . . 3 . 41 7 . . . 14 . 179 . 45 Explosions 483 | . 126 . . 27 . 8 . . . . . 37 . . 285 Melee 517 | . 1 . . . . 66 77 . . 104 78 70 . . 121 Knockbacks 4 | . . . . . . 1 . . . . 1 . . . 2 Impact 3 | . . . . . . . . . . . 1 . . . 2 Kinetic 1 | . . . . . . 1 . . . . . . . . . Secondary . | . . . . . . . . . . . . . . . . Self-Inflicted Damage 586 | . . 46 . 62 . 147 30 5 . 139 . . . . 157 Shots 21 | . . 1 . 2 . 7 1 . . 5 . . . . 5 Rammed 6 | . 1 1 . . 1 2 . 1 . . . . . . . Targets Rammed 7 | . 2 1 . . 1 2 . 1 . . . . . . . Kicked . | . . . . . . . . . . . . . . . . Crushed 1 | . 1 . . . . . . . . . . . . . . Highest Temperature 569 | 18 127 50 569 135 237 266 256 138 180 2 360 342 342 126 312 Average Temperature 77 | 9 32 22 95 39 63 56 76 43 116 2 109 120 95 56 101 Received Heat Transfer 3254 | . 162 313 507 . 135 1024 . . . 239 120 148 27 . 579 Effects 15 | . . . 12 . . . . . . . 1 . 2 . . Shutdowns 3 | . . . 3 . . . . . . . . . . . . Energy Bleed 3 | . . . 1 . . . . . . . 1 . 1 . . Matter Decay 2 | . . . 2 . . . . . . . . . . . . Short Circuit 2 | . . . 1 . . . . . . . . . 1 . . Damage (minor) 2 | . . . 2 . . . . . . . . . . . . Damage (major) 3 | . . . 3 . . . . . . . . . . . . Siege Activations . | . . . . . . . . . . . . . . . . Robots Corrupted 4 | . . . . . . 2 . 1 . . . . . . 1 Combat Hostiles 4 | . . . . . . 2 . 1 . . . . . . 1 Parts Fried 12 | . . . . . . 8 2 . . . 2 . . . . Impact Corruptions 20 | . 1 . . . . 3 2 . . 6 4 2 . . 2 Robots Melted 3 | . . . . . . 2 . . . . . . . . 1 Combat Hostiles 3 | . . . . . . 2 . . . . . . . . 1 Parts Melted 26 | 1 1 . 10 1 1 3 . . . . 1 1 5 . 2 Heat Transferred 14632 | 185 1850 111 4070 777 1147 1656 . . . . 350 700 2200 . 1586 Parts Sabotaged . | . . . . . . . . . . . . . . . . Parts Stolen . | . . . . . . . . . . . . . . . . Parts Stripped . | . . . . . . . . . . . . . . . . Power Chain Reactions 4 | . . . . . . 3 . . . . . . . . 1 Alert | -11 -10 -10 -9 -9 -8 -7 -7 -7 -7 -6 -6 -6 -6 -6 -6 ------- Run | Yrd Mat Min Mat Min Mat Fac Low Low Dat Pro Fac Low Low Zio Dee Peak Influence 742 | 20 277 72 558 611 377 742 . . . . 96 . . . . Initial 217 | . 13 5 27 217 137 53 . . . . . . . . . Average 196 | 9 86 8 249 437 247 434 . . . . 28 . . . . Maximum Alert Level 3 | . 1 . 2 2 1 3 . . . . . . . . . Low Security (%) 62 | 100 94 100 35 . 40 22 . . . . 100 . . . . Level 1 19 | . 5 . 48 26 59 21 . . . . . . . . . Level 2 18 | . . . 15 73 . 52 . . . . . . . . . Level 3 . | . . . . . . 3 . . . . . . . . . Level 4 . | . . . . . . . . . . . . . . . . Level 5 . | . . . . . . . . . . . . . . . . High Security . | . . . . . . . . . . . . . . . . Max Security . | . . . . . . . . . . . . . . . . Squads Dispatched 30 | . 3 1 6 . 3 13 . . . . 4 . . . . Investigation 9 | . 3 . 3 . 1 1 . . . . 1 . . . . Extermination 5 | . . . . . . 3 . . . . 2 . . . . Reinforcement 7 | . . . 3 . . 3 . . . . 1 . . . . Assault 4 | . . 1 . . 1 2 . . . . . . . . . Garrison 5 | . . . . . 1 4 . . . . . . . . . Intercept . | . . . . . . . . . . . . . . . . Searches Triggered . | . . . . . . . . . . . . . . . . Construction Impeded 2 | . . . . . . 2 . . . . . . . . . Haulers Reinforced 1 | . . . . . . 1 . . . . . . . . . Active Scanning Responses . | . . . . . . . . . . . . . . . . Cargo Convoy Interrupts . | . . . . . . . . . . . . . . . . Stealth | -11 -10 -10 -9 -9 -8 -7 -7 -7 -7 -6 -6 -6 -6 -6 -6 --------- Run | Yrd Mat Min Mat Min Mat Fac Low Low Dat Pro Fac Low Low Zio Dee Distress Signals 5 | . . . 2 . 3 . . . . . . . . . . Communications Jammed 1 | . . . . . . . . . . . 1 . . . . Distress Signals . | . . . . . . . . . . . . . . . . Times Spotted 251 | . 23 17 39 16 13 44 3 5 . 8 8 7 11 . 57 Peak Tracking Total 38 | . 4 3 4 4 3 6 3 4 . 4 2 3 4 . 38 Tactical Retreats 13 | . 2 1 1 3 . 5 . 1 . . . . . . . Traps | -11 -10 -10 -9 -9 -8 -7 -7 -7 -7 -6 -6 -6 -6 -6 -6 ------- Run | Yrd Mat Min Mat Min Mat Fac Low Low Dat Pro Fac Low Low Zio Dee Traps Triggered 3 | . 1 . 1 . . 1 . . . . . . . . . Indirectly . | . . . . . . . . . . . . . . . . Trap Hack Attempts . | . . . . . . . . . . . . . . . . Triggered . | . . . . . . . . . . . . . . . . Disarmed . | . . . . . . . . . . . . . . . . Reprogrammed . | . . . . . . . . . . . . . . . . Reused . | . . . . . . . . . . . . . . . . Traps Extracted . | . . . . . . . . . . . . . . . . Installed . | . . . . . . . . . . . . . . . . Triggered 1 | . . . . . . 1 . . . . . . . . . Machines | -11 -10 -10 -9 -9 -8 -7 -7 -7 -7 -6 -6 -6 -6 -6 -6 ---------- Run | Yrd Mat Min Mat Min Mat Fac Low Low Dat Pro Fac Low Low Zio Dee Machines Disabled 17 | . 3 . . . . 5 . . . . 2 2 1 . 4 Max in Single Turn 2 | . 2 . . . . 2 . . . . 1 1 1 . 1 Garrison Access 2 | . . . . . 1 1 . . . . . . . . . Machines Repaired . | . . . . . . . . . . . . . . . . Machines Dismantled . | . . . . . . . . . . . . . . . . Machines Sabotaged . | . . . . . . . . . . . . . . . . Overloaded Fab Kills . | . . . . . . . . . . . . . . . . Hacking | -11 -10 -10 -9 -9 -8 -7 -7 -7 -7 -6 -6 -6 -6 -6 -6 --------- Run | Yrd Mat Min Mat Min Mat Fac Low Low Dat Pro Fac Low Low Zio Dee Machines Accessed 53 | . 10 . 8 1 5 12 1 . 4 1 9 . 2 . . Terminals 33 | . 7 . 5 1 4 7 . . . 1 8 . . . . Fabricators 1 | . . . . . . . . . . . 1 . . . . Repair Stations 6 | . 1 . 1 . . 4 . . . . . . . . . Recycling Units 3 | . 2 . 1 . . . . . . . . . . . . Scanalyzers 2 | . . . 1 . 1 . . . . . . . . . . Garrison Access 1 | . . . . . . 1 . . . . . . . . . Total Hacks 135 | . 31 . 17 1 16 18 1 . 32 1 16 . 2 . . Successful 86 | . 15 . 14 . 10 8 1 . 32 1 3 . 2 . . Failed 49 | . 16 . 3 1 6 10 . . . . 13 . . . . Catastrophic 18 | . 2 . . 1 1 5 . . . . 9 . . . . Database Lockouts . | . . . . . . . . . . . . . . . . Manual 58 | . 20 . 6 1 10 7 . . . . 9 . . 5 . Terminals 69 | . 21 . 9 1 12 11 . . . 1 14 . . . . Fabricators 2 | . . . . . . . . . . . 2 . . . . Repair Stations 16 | . 6 . 4 . . 6 . . . . . . . . . Recycling Units 5 | . 4 . 1 . . . . . . . . . . . . Scanalyzers 7 | . . . 3 . 4 . . . . . . . . . . Garrison Access 1 | . . . . . . 1 . . . . . . . . . Terminal Hacks 54 | . 8 . 4 . 3 2 1 . 32 1 1 . 2 . . Record 13 | . . . . . . . 1 . 11 1 . . . . . Part Schematic 14 | . 1 . 1 . . . . . 12 . . . . . . Robot Schematic 7 | . 1 . . . . . . . 6 . . . . . . Robot Analysis 2 | . 2 . . . . . . . . . . . . . . Prototype ID Bank 3 | . . . . . . . . . 3 . . . . . . Open Door 2 | . . . . . . . . . . . . . 2 . . Branch Access Points 3 | . . . 1 . . 1 . . . . 1 . . . . Emergency Access Points 1 | . . . . . . 1 . . . . . . . . . Terminal Index 1 | . . . . . 1 . . . . . . . . . . Unreport Threat 1 | . 1 . . . . . . . . . . . . . . Locate Traps 5 | . 2 . 1 . 2 . . . . . . . . . . Hauler Manifests 2 | . 1 . 1 . . . . . . . . . . . . Fabricator Hacks 1 | . . . . . . . . . . . 1 . . . . Network Status 1 | . . . . . . . . . . . 1 . . . . Repair Station Hacks 12 | . 4 . 4 . . 4 . . . . . . . . . Scan Component 6 | . 2 . 2 . . 2 . . . . . . . . . Repair 6 | . 2 . 2 . . 2 . . . . . . . . . Recycling Unit Hacks . | . . . . . . . . . . . . . . . . Scanalyzer 7 | . . . 3 . 4 . . . . . . . . . . Insert Component 4 | . . . 2 . 2 . . . . . . . . . . Analyze 3 | . . . 1 . 2 . . . . . . . . . . Garrison Access Hacks . | . . . . . . . . . . . . . . . . Unauthorized Hacks 12 | . 3 . 3 . 3 2 . . . . 1 . . . . Terminals 9 | . 1 . 2 . 3 2 . . . . 1 . . . . Botnet 7 | . 1 . 1 . 2 2 . . . . 1 . . . . Operators 2 | . . . 1 . 1 . . . . . . . . . . Fabricators . | . . . . . . . . . . . . . . . . Repair Stations . | . . . . . . . . . . . . . . . . Recycling Units 3 | . 2 . 1 . . . . . . . . . . . . Tunnel 3 | . 2 . 1 . . . . . . . . . . . . Scanalyzers . | . . . . . . . . . . . . . . . . Garrison Access . | . . . . . . . . . . . . . . . . Data Cores Recovered . | . . . . . . . . . . . . . . . . Used . | . . . . . . . . . . . . . . . . Hacking Detections 35 | . 7 . 5 1 2 11 . . . . 9 . . . . Full Trace Events 2 | . . . 1 . . . . . . . 1 . . . . Feedback Events . | . . . . . . . . . . . . . . . . Feedback Blocked . | . . . . . . . . . . . . . . . . Robot Schematics Acquired 11 | . 1 . . . . . . . 6 . . . . 4 . Robots Built . | . . . . . . . . . . . . . . . . Authchips . | . . . . . . . . . . . . . . . . Time . | . . . . . . . . . . . . . . . . Total Robot Build Rating . | . . . . . . . . . . . . . . . . Part Schematics Acquired 31 | . 1 . 2 . 2 . . . 12 . . . . 14 . Parts Built . | . . . . . . . . . . . . . . . . Authchips . | . . . . . . . . . . . . . . . . Time . | . . . . . . . . . . . . . . . . Total Part Build Rating . | . . . . . . . . . . . . . . . . Parts Repaired 6 | . 2 . 2 . . 2 . . . . . . . . . Time 179 | . 52 . 64 . . 63 . . . . . . . . . Parts Recycled . | . . . . . . . . . . . . . . . . Recycled Matter . | . . . . . . . . . . . . . . . . Retrieved Matter . | . . . . . . . . . . . . . . . . Retrieved Components . | . . . . . . . . . . . . . . . . Parts Scanalyzed 3 | . . . 1 . 2 . . . . . . . . . . Part Schematics Acquired 3 | . . . 1 . 2 . . . . . . . . . . Parts Damaged . | . . . . . . . . . . . . . . . . Bothacking | -11 -10 -10 -9 -9 -8 -7 -7 -7 -7 -6 -6 -6 -6 -6 -6 ------------ Run | Yrd Mat Min Mat Min Mat Fac Low Low Dat Pro Fac Low Low Zio Dee Used RIF Installer . | . . . . . . . . . . . . . . . . Robots Hacked 2 | . . . . . . . . . 1 1 . . . . . Non-combat . | . . . . . . . . . . . . . . . . Combat 2 | . . . . . . . . . 1 1 . . . . . Robot Hacks Applied 2 | . . . . . . . . . 1 1 . . . . . parse_system 2 | . . . . . . . . . 1 1 . . . . . Relay Couplers Released 3 | . . . . . 3 . . . . . . . . . . Machine Destruction 3 | . . . . . 3 . . . . . . . . . . Fabnet Peak Effective % . | . . . . . . . . . . . . . . . . Robots Rewired . | . . . . . . . . . . . . . . . . Allies Hacked . | . . . . . . . . . . . . . . . . Hacks Repelled . | . . . . . . . . . . . . . . . . Allies | -11 -10 -10 -9 -9 -8 -7 -7 -7 -7 -6 -6 -6 -6 -6 -6 -------- Run | Yrd Mat Min Mat Min Mat Fac Low Low Dat Pro Fac Low Low Zio Dee Total Allies 7 | . . 1 . 3 . . . . . 1 . . . 2 . Largest Group 3 | . . 1 . 3 3 . . . . 1 . . . 2 2 Highest-Rated Group 192 | . . 31 . 40 40 . . . . 96 . . . 192 192 Highest-Rated Ally 96 | . . 31 . 16 16 . . . . 96 . . . 96 96 Total Orders . | . . . . . . . . . . . . . . . . Ally Attacks 80 | . . 5 . . 25 . . . . 5 . . . . 45 Total Damage 1538 | . . 85 . . 242 . . . . 194 . . . . 1017 Kills 13 | . . 1 . . 4 . . . . 1 . . . . 7 Allies Corrupted . | . . . . . . . . . . . . . . . . Allies Melted . | . . . . . . . . . . . . . . . . Intel | -11 -10 -10 -9 -9 -8 -7 -7 -7 -7 -6 -6 -6 -6 -6 -6 ------- Run | Yrd Mat Min Mat Min Mat Fac Low Low Dat Pro Fac Low Low Zio Dee Robot Analysis Total 2 | . 2 . . . . . . . . . . . . . . Derelict Logs Recovered 8 | . . 1 . 1 . . 1 1 . 1 . . 3 . . Drone Launches . | . . . . . . . . . . . . . . . . Drone Recoveries . | . . . . . . . . . . . . . . . . Exploration | -11 -10 -10 -9 -9 -8 -7 -7 -7 -7 -6 -6 -6 -6 -6 -6 ------------- Run | Yrd Mat Min Mat Min Mat Fac Low Low Dat Pro Fac Low Low Zio Dee Turns Passed 25048 | 128 2339 1998 1574 970 915 2093 964 921 214 1086 1261 1126 4764 2631 2064 Spaces Moved 9975 | 60 922 666 715 653 517 735 378 388 94 448 409 438 1812 1014 726 Core 18 | 3 . . . . . . . . . . . . . . 15 Treads 2666 | 57 922 551 1 . 2 . . . . . 76 90 967 . . Legs . | . . . . . . . . . . . . . . . . Wheels 7291 | . . 115 714 653 515 735 378 388 94 448 333 348 845 1014 711 Hover . | . . . . . . . . . . . . . . . . Flight . | . . . . . . . . . . . . . . . . Fastest Speed 50 | 50 160 130 120 120 150 150 210 225 225 210 240 240 240 240 50 Average Speed 217 | 154 222 222 130 135 153 214 217 225 225 213 243 240 246 256 255 Slowest Speed 270 | 160 240 240 240 150 232 225 240 240 240 240 255 255 255 270 270 Overloaded Moves . | . . . . . . . . . . . . . . . . Propulsion Burnouts . | . . . . . . . . . . . . . . . . Robots Hopped 1 | . . . . . . . . . . . . . 1 . . Cave-ins Triggered . | . . . . . . . . . . . . . . . . Exploration Rate (%) 65 | 6 98 98 59 100 51 21 57 46 74 75 15 66 99 86 90 Regions Visited 15 Branch Regions 10 Pre-discovered Areas 9 | . 2 1 1 . . . . . 1 . . . 1 3 . Known Exits Taken 4 | . . . 1 . . 1 . . . 1 1 . . . . Unknown Exits Taken 11 | 1 1 1 . 1 1 . 1 1 1 . . 1 1 1 . Scrap Searched 19 | . . 2 . 3 . . 3 2 . 3 . 1 2 3 . Spaces Dug 179 | . . 3 15 19 . 7 33 12 . . 20 . 52 . 18 Terrain Destroyed 665 | . 29 17 24 19 . 130 61 12 . 78 30 44 168 . 53 Melee 59 | . . . . . . 7 33 2 . . 17 . . . . Projectile 72 | . . 3 4 . . 4 1 . . . 13 7 30 . 10 AOE 534 | . 29 14 20 19 . 119 27 10 . 78 . 37 138 . 43 Terrain Rammed . | . . . . . . . . . . . . . . . . Walls Destroyed . | . . . . . . . . . . . . . . . . Machines Disabled . | . . . . . . . . . . . . . . . . Actions | -11 -10 -10 -9 -9 -8 -7 -7 -7 -7 -6 -6 -6 -6 -6 -6 --------- Run | Yrd Mat Min Mat Min Mat Fac Low Low Dat Pro Fac Low Low Zio Dee Total 12133 | 80 1088 1084 1153 692 601 1019 439 414 97 524 552 475 2010 1046 859 Wait 969 | . 74 347 245 5 7 70 . 2 . 12 24 2 123 14 44 Move 9958 | 59 921 665 714 652 516 734 377 387 93 447 408 437 1809 1013 726 Hop 1 | . . . . . . . . . . . . . 1 . . Pick Up 124 | 7 16 2 21 3 18 15 1 4 . 9 9 2 4 4 9 Fast Attach 48 | 7 2 . 9 . 2 11 2 . . 1 5 . 1 1 7 Attach 57 | . . 5 11 2 2 14 4 . 1 2 6 . 1 3 6 Detach 29 | . . . 8 . 1 6 1 . 1 . 3 . 4 . 5 Swap 175 | . 8 12 16 3 9 41 7 8 1 12 24 16 11 . 7 Drop 102 | 1 4 2 18 3 21 8 1 1 . 6 9 3 7 5 13 Fire 569 | 6 61 50 111 24 24 104 10 8 . 26 37 14 49 6 39 Melee 94 | . . . . . . 14 36 3 1 9 27 1 . . 3 Ram 2 | . . . . . . 1 . 1 . . . . . . . Kick . | . . . . . . . . . . . . . . . . Crush 5 | . 2 1 . . 1 1 . . . . . . . . . Escape Stasis . | . . . . . . . . . . . . . . . . Rewire . | . . . . . . . . . . . . . . . . Trap . | . . . . . . . . . . . . . . . . Miscellaneous . | . . . . . . . . . . . . . . . . Route ------- -11/Scrapyard -10/Materials (discovered 4 exits: *Mat x3 / [*Min]) -10/Mines (discovered 3 exits: *Mat x2 / [*Exi]) -9/Materials (discovered 5 exits: *Mat x2 / *Min x2 / Sto) -9/Mines (discovered 2 exits: *Mat x2) -8/Materials -7/Factory (discovered 2 exits: *Low x2) -7/Lower Caves -7/Lower Caves (discovered 2 exits: Fac / *Dat) -7/Data Miner -6/Proximity Caves -6/Factory (discovered 2 exits: *Low x2) -6/Lower Caves -6/Lower Caves (discovered 2 exits: [*Fac] / *Zio) -6/Zion (discovered 2 exits: [*Dee] / [*Pro]) -6/Deep Caves (discovered 1 exit: [*Pro]) History --------- Turn | Location | Event 4 | -11/Scrapyard | Discovered new exit (range 15) 129 | -11/Scrapyard | Entered Materials 309 | -10/Materials | Build established: Mutant 531 | -10/Materials | Discovered new exit (range 16) 671 | -10/Materials | Discovered new exit (range 16) 1000 | -10/Materials | Discovered new exit (range 16) 1104 | -10/Materials | Repaired Lgt. Treads 1132 | -10/Materials | Repaired Lgt. Treads 2084 | -10/Materials | Discovered new exit (range 16) 2468 | -10/Materials | Entered Mines 2472 | -10/Mines | Met a Derelict bent on vengeance 2519 | -10/Mines | Deemed a non-threat by the Exiles lab entrance 2521 | -10/Mines | Discovered new exit (range 5) 2787 | -10/Mines | Learned Materials stockpile data 2794 | -10/Mines | Received a Rocket Launcher from a helpful Derelict 2800 | -10/Mines | Discovered new exit (range 6) 2983 | -10/Mines | Learned location of Storage (-9) 3063 | -10/Mines | Assembled infested the area 3686 | -10/Mines | Core integrity fell below 50% 3717 | -10/Mines | Discovered new exit (range 7) 4196 | -10/Mines | Met a Derelict testing a Signal Generator 4377 | -10/Mines | Core integrity fell below 20% 4432 | -10/Mines | Lost 3 parts (2n1u) 4466 | -10/Mines | Entered Materials 4466 | -9/Materials | Evolved 2 slots: Propulsion x1, Utility x1 5082 | -9/Materials | Discovered new exit (range 16) 5405 | -9/Materials | Identified exit to Mines 5405 | -9/Materials | Identified exit to Storage 5505 | -9/Materials | Repaired Rocket Launcher 5538 | -9/Materials | Repaired Imp. Treads 5642 | -9/Materials | Core integrity fell below 50% 5727 | -9/Materials | Discovered new exit (range 11) 6040 | -9/Materials | Entered Mines 6093 | -9/Mines | Joined a pair of Derelicts in attacking an 0b10 outpost 6356 | -9/Mines | Discovered new exit (range 9) 6389 | -9/Mines | Discovered new exit (range 7) 6508 | -9/Mines | Assisted by bots powering up and referring to "LRC-V3" 7010 | -9/Mines | Entered Materials 7010 | -8/Materials | Accompanied by 3 allies 7010 | -8/Materials | Evolved 2 slots: Utility x2 7125 | -8/Materials | Garrison activated, responded to threat 7548 | -8/Materials | Discovered new exit (range 13) 7925 | -8/Materials | Entered Factory 7925 | -7/Factory | Evolved 2 slots: Power x1, Utility x1 8085 | -7/Factory | Garrison activated, responded to threat 8480 | -7/Factory | Identified exit to Lower Caves 8549 | -7/Factory | Garrison activated, responded to threat 8614 | -7/Factory | Lost 5 parts (1p3u1w) 8880 | -7/Factory | Found Prototype Launcher 8880 | -7/Factory | Identified Rocket Array 8886 | -7/Factory | Found Rocket Array 8890 | -7/Factory | Found Rocket Array 9096 | -7/Factory | Repaired Broken Arm. Wheel 9300 | -7/Factory | Repaired Imp. Light Armor Plating 9538 | -7/Factory | Lost 3 parts (1p2w) 9925 | -7/Factory | First assault squad dispatched 10018 | -7/Factory | Entered Lower Caves 10510 | -7/Lower Caves | Discovered new exit (range 13) 10873 | -7/Lower Caves | Found Alien Artifact 10873 | -7/Lower Caves | Identified Core Expander 10873 | -7/Lower Caves | Installed Core Expander, added new Power slot 10875 | -7/Lower Caves | Learned 4 Factory zone layouts 10982 | -7/Lower Caves | Entered another Lower Caves area 11000 | -7/Lower Caves | Identified exit to Factory 11204 | -7/Lower Caves | Spotted B-75 Beast 11584 | -7/Lower Caves | Discovered new exit (range 11) 11903 | -7/Lower Caves | Entered Data Miner 11904 | -7/Data Miner | Discovered new exit (range 6) 11948 | -7/Data Miner | Met Data Miner 11993 | -7/Data Miner | Learned location of Section 7 (-3) 11993 | -7/Data Miner | Acquired the access code to Warlord's prototype stash 12042 | -7/Data Miner | Received God Mode back door access code from Data Miner 12117 | -7/Data Miner | Entered Proximity Caves 12187 | -6/Proximity Caves | Core integrity fell below 50% 12324 | -6/Proximity Caves | Attracted the attention of an 0b10 checkpoint 12350 | -6/Proximity Caves | Escorted by Enhanced Grunt 13097 | -6/Proximity Caves | Discovered exit to Factory (range 11) 13155 | -6/Proximity Caves | Found Exp. Thermal Shield 13203 | -6/Proximity Caves | Entered Factory 13203 | -6/Factory | Evolved 2 slots: Propulsion x1, Weapon x1 13253 | -6/Factory | Spotted B-75 Beast 13334 | -6/Factory | Destroyed B-75 Beast 13358 | -6/Factory | Lost 5 parts (1p3n1u) 14233 | -6/Factory | Discovered new exit (range 12) 14369 | -6/Factory | Identified exit to Lower Caves 14464 | -6/Factory | Entered Lower Caves 14587 | -6/Lower Caves | Encountered a Warlord checkpoint 15278 | -6/Lower Caves | Discovered new exit (range 14) 15590 | -6/Lower Caves | Entered another Lower Caves area 15796 | -6/Lower Caves | Learned Factory terminal intel 15886 | -6/Lower Caves | Build established: Skirmisher 15982 | -6/Lower Caves | Encountered a Warlord checkpoint 16118 | -6/Lower Caves | Found Prototype Device 16428 | -6/Lower Caves | Build established: Tank 16511 | -6/Lower Caves | Discovered new exit (range 22) 16595 | -6/Lower Caves | Learned 4 Factory zone layouts 17398 | -6/Lower Caves | Discovered new exit (range 5) 17765 | -6/Lower Caves | Identified Heart of Steel 18052 | -6/Lower Caves | Build established: Skirmisher 19297 | -6/Lower Caves | Murdered Warlord Statue 20354 | -6/Lower Caves | Entered Zion 20513 | -6/Zion | Discovered new exit (range 15) 20525 | -6/Zion | Acquired unknown access codes intercepted by a Zionite 20578 | -6/Zion | Given A8's code to call for help 20661 | -6/Zion | Found GAL Module 21034 | -6/Zion | Learned location of Armory (-4) 21303 | -6/Zion | Given the Hacking Drone Bay 21465 | -6/Zion | Enhanced Grunt warped into view, answering call for help 21474 | -6/Zion | Enhanced Grunt warped into view, answering call for help 21474 | -6/Zion | Opened final containment barrier to the Deep Caves 21517 | -6/Zion | Discovered new exit (range 3) 21517 | -6/Zion | Saw the warning signs outside the Deep Caves entrance 22238 | -6/Zion | Found Prototype Device 22543 | -6/Zion | Build established: Tank 22985 | -6/Zion | Entered Deep Caves 22985 | -6/Deep Caves | Accompanied by 2 allies 23109 | -6/Deep Caves | Z-Facility disabled 23451 | -6/Deep Caves | Attacked by Z-Imprinter 23466 | -6/Deep Caves | Destroyed Z-Imprinter 23760 | -6/Deep Caves | Lost 4 parts (2p1n1w) 23950 | -6/Deep Caves | Found Prototype Protection 23950 | -6/Deep Caves | Identified Zio. Heavy Carapace 23963 | -6/Deep Caves | Found Prototype Protection 23963 | -6/Deep Caves | Identified Zio. Weapon Casing 23999 | -6/Deep Caves | Found Zio. Weapon Casing 24121 | -6/Deep Caves | Found Zio. Weapon Casing 24178 | -6/Deep Caves | Found Zio. Heavy Carapace 24795 | -6/Deep Caves | Discovered new exit (range 6) 24861 | -6/Deep Caves | Spotted AG-85818 24915 | -6/Deep Caves | Destroyed AG-85818 24999 | -6/Deep Caves | Spotted AG-77857 25014 | -6/Deep Caves | Exposed GOLEM chamber 25015 | -6/Deep Caves | Triggered Deep Caves wall 25015 | -6/Deep Caves | Spotted AS-28757 25015 | -6/Deep Caves | Spotted AS-48944 25027 | -6/Deep Caves | Core integrity fell below 50% 25042 | -6/Deep Caves | Core integrity fell below 20% 25049 | -6/Deep Caves | Destroyed by as-70415 with Assembled Shotgun Last Messages --------------- 25026_ as-62462 released from Mobile Assembly Unit. 25029_ Zio. Weapon Casing destroyed. 25029_ as-92007 destroyed. 25030_ Rocket Array destroyed. 25034_ Dropped Huge Storage Unit. 25035_ as-70415 released from Mobile Assembly Unit. 25036_ as-65918 released from Mobile Assembly Unit. 25036_ Critical hit (Burn: +80). 25040_ Penetrated by Slug. 25042_ Powered Hammer destroyed. 25044_ Penetrated by Slug. 25045_ as-45978 released from Mobile Assembly Unit. 25046_ as-07844 released from Mobile Assembly Unit. 25048_ Critical hit (Burn: +80). 25049_ Penetrated by Slug. Map ----- +----------------------------------------------------+ | ???????????? ?????????????# | | ?????????"" ?????????????# | | ????????" ##?##????????# | | ????????? # # #????????# | | ????????"" # # #????????? | | ????????? # #?##?????? | | ?????????" # #? #?????? | | ?????????? #? #?????? | | ????????""" #? #?????? | | ????????" ## #?????? | | ????????" # ###???? | | ????????" [ ???? | | ????????# ????? | | ????????" ?????? | | ?????????" ###????? | | ?????????" #????? | | ?????????" !!! ###???? | | ????????""G !*&]!# #???? | | ??????### !!!!!# ##### | | ??""""" !*!]# ## | | ??" !] ##### | | ??" Aa ###? | | ??" a a #? | | ??" [ #### | | ??" a ! ##?# | | ??" a@ #?# | | ??" Aa h! [ #?# | | ??""""" [ = ### | | ??????### [ ## | | ????????"" [= ## | | ?????????" [ ## | | ?????????" = ## | | ?????????" [ [ = ## | | ????????"" l ## | | ????????# ## | | ????????" * #? | | ????????" * l ## | | ????????" s* | | ????????""" | | ????????" | | ????????"" h % ## | | ????????" #? | | ????????"" ##? | | ????????" #%# #?? | | ????????" #### ## # ##?? | | ????????""" ###??# ?# # ##??? | | ?????????" ?????#??# ## ???? | | ???????????#??????????##???#??? | | | | | +----------------------------------------------------+ Best States ------------- Heat Dissipation 64 Coolant Potential 65 Energy Generation 44 Energy Capacity 1160 Matter Stores 300 Matter Capacity 300 Sight Range 22 Terrain Scan Range 16 Terrain Scan Density 10 Jamming Range 12 Armor Coverage 1600 Resistance: TH 30 Resistance: EM 25 Utility Shielding 33 Weapon Shielding 100 Evasion (%) 50 Recoil Reduction 3 Salvage Targeting 1 Authchip Count 3 Item Schematics ----------------- Huge Storage Unit | -10/Materials | Hacked Seismic Detector | -9/Materials | Scanalyzed Salvage Targeting Computer | -9/Materials | Hacked Arm. Wheel | -8/Materials | Scanalyzed Structural Scanner | -8/Materials | Scanalyzed Combat Drone Bay | -7/Data Miner | Free Lgt. Regenerative Plating | -7/Data Miner | Free Cld. Aerolev Unit | -7/Data Miner | Free Exp. Propulsion Shielding | -7/Data Miner | Free Antimatter Cannon | -7/Data Miner | Free Gyrokinetic Inverter | -7/Data Miner | Free Adv. Field Recycling Unit | -7/Data Miner | Free KE Penetrator | -7/Data Miner | Free Imp. Medium Treads | -7/Data Miner | Free Recoil Nullifier | -7/Data Miner | Free Adv. Drone Bay | -7/Data Miner | Free Nanoactuators | -7/Data Miner | Free Power Amplifier | -6/Zion | Archive Imp. Remote Datajack | -6/Zion | Archive Hvy. Machine Gun | -6/Zion | Archive Imp. Arc Projector | -6/Zion | Archive Mak. Hover Unit | -6/Zion | Archive Point Defense System | -6/Zion | Archive 0b10 Decoder Chip [Scout] | -6/Zion | Archive Phase Gun | -6/Zion | Archive Hardcell Cannon | -6/Zion | Archive Fusion Compressor | -6/Zion | Archive Hvy. Beamcaster | -6/Zion | Archive Imp. Trap Scanner | -6/Zion | Archive Imp. Launcher Guidance Computer | -6/Zion | Archive Thermal Shield | -6/Zion | Archive Robot Schematics ------------------ M-13 Machinist | -10/Materials | Hacked M-22 Extractor | -7/Data Miner | Free R-10 Processor | -7/Data Miner | Free H-66 Slayer | -7/Data Miner | Free B-48 Gladiator | -7/Data Miner | Free S-27 Virus | -7/Data Miner | Free E-15 Imp | -7/Data Miner | Free T-07 Excavator | -6/Zion | Archive A-15 Conveyor | -6/Zion | Archive G-50 Soldier | -6/Zion | Archive X-77 Beamer | -6/Zion | Archive Fabricated ------------ Nothing Alien Tech Used ----------------- Core Expander Achievements -------------- None Challenges ------------ None Game ------ Seed MicroNovaDissipator Manual? 0 Play Time 02:24:59 Cumulative 465.0 hours Start 2024.04.05 @ 17:05:26 End 2024.04.09 @ 15:52:44 Sessions 17 Manual Loads 0 Difficulty Rogue Special Mode None Game No. 214 Rogue 214 Adventurer 0 Explorer 0 Win Type - Total 11 Types 8/0/1/1/0/0/0/1/0 Lore% 87 Gallery% 93 Achievement% 71 Wizard Run 0 Options --------- Layout 2 ASCII 1 Keyboard 1 Movement Vi Keybinds 0 Fullscreen 2 Font 18/SmallcapsGlow Map View 50x49 Zoom Use 0% Tactical HUD 1 Map Filters NONE Filters NONE Steam 0 RUN: f8854968-cc79-4c71-b985-d395856988fd